Cogmind - Beta 13 @@@ ROGUE MODE // 2024.04.13 @ 21:49:49 Player: emory Result: Destroyed by S-27 Virus with Autogun Performance ------------- Evolutions (4) 2000 Regions Visited (6) 1200 Robots Destroyed (16) 80 Value Destroyed (382) 382 Prototype IDs (2) 40 Alien Tech Used (0) 0 Bonus (0) 0 TOTAL SCORE: 3702 Bonus ------- None Cogmind --------- Core Integrity 0/850 Matter 179/300 Energy 100/100 System Corruption 0% Temperature Cool (0) Movement Core (50) Location -6/Lower Caves Parts ------- > --- POWER (2) -------- (None) > --- PROPULSION (6) --- (None) > --- UTILITY (4) ------ (None) > --- WEAPON (3) ------- (None) > --- INVENTORY (5) ---- Micro Nuclear Core Small Storage Unit ECM Suite Peak State ------------ > --- POWER ------------ Micro Nuclear Core > --- PROPULSION ------- Nuclear Pulse Thruster > --- UTILITY ---------- Hacking Suite > --- WEAPON ----------- Autogun > --- INVENTORY -------- Small Storage Unit ECM Suite [Rating: 14] Favorites ----------- Power Light Ion Engine Engine Light Ion Engine Power Core Micro Nuclear Core Propulsion Flight Unit Flight Unit Flight Unit Utility Hacking Suite Device ECM Suite Processor Signal Interpreter Hackware Hacking Suite Weapon Light Assault Rifle Ballistic Gun Light Assault Rifle Launcher Grenade Launcher Build | -11 -10 -9 -8 -7 -6 -6 ------- Run | Yrd Mat Mat Mat Fac Fac Low Slots Evolved 8 | . . 2 2 2 2 . Power 1 | . . . . . 1 . Propulsion 4 | . . . 2 2 . . Utility 2 | . . 2 . . . . Weapon 1 | . . . . . 1 . Parts Attached 19 | 2 4 1 2 2 7 1 Power 3 | . 1 . . . 2 . Engine 1 | . 1 . . . . . Core 2 | . . . . . 2 . Reactor . | . . . . . . . Propulsion 4 | . 2 . . . 2 . Treads . | . . . . . . . Leg . | . . . . . . . Wheel . | . . . . . . . Hover . | . . . . . . . Flight 4 | . 2 . . . 2 . Utility 3 | . 1 1 . . 1 . Device 1 | . . . . . 1 . Storage . | . . . . . . . Processor 1 | . . 1 . . . . Hackware 1 | . 1 . . . . . Protection . | . . . . . . . Artifact . | . . . . . . . Weapon 9 | 2 . . 2 2 2 1 Energy Gun . | . . . . . . . Energy Cannon . | . . . . . . . Ballistic Gun 7 | 2 . . 1 1 2 1 Ballistic Cannon . | . . . . . . . Launcher 2 | . . . 1 1 . . Special Weapon . | . . . . . . . Impact Weapon . | . . . . . . . Slashing Weapon . | . . . . . . . Piercing Weapon . | . . . . . . . Special Melee Weapon . | . . . . . . . Unidentified Prototypes . | . . . . . . . Parts Lost 13 | . . . 6 3 1 3 Power 1 | . . . 1 . . . Propulsion 4 | . . . 2 . 1 1 Utility 2 | . . . . 1 . 1 Weapon 6 | . . . 3 2 . 1 Highest Loss Streak 6 | . . . 6 3 1 3 To Critical Strikes . | . . . . . . . Average Slot Usage (%) 28 | . 33 73 48 13 18 4 Engine 2 | . 1 11 4 . . . Core 1 | . . . . . 5 . Flight 5 | . 2 22 10 . 5 . Processor 3 | . . 7 9 3 . . Hackware 6 | . . 11 9 7 6 1 Ballistic Gun 9 | . 28 22 14 1 . . Naked Turns 47 | . . . . . . 47 Heaviest Build 9 | 3 6 6 6 2 9 6 Greatest Support 8 | 3 8 8 8 3 6 6 Greatest Overweight (x) 1 | . 1 . . . 1 . Average Overweight (x) . | . . . . . . . Largest Inventory Capacity 5 | 5 5 5 5 5 5 5 Average Capacity 5 | 5 5 5 5 5 5 5 Most Carried 5 | 5 5 5 5 5 5 4 Average Carried 3 | 3 4 4 4 3 3 3 Final Capacity 5 | 5 5 5 5 5 5 5 Final Carried 5 | 4 5 5 4 5 3 3 Class Distribution -------------------- 100% | Mutant Dominant Class ---------------- Mutant | -10/Materials Mutant | -9/Materials Mutant | -8/Materials Mutant | -7/Factory Mutant | -6/Factory Mutant | -6/Lower Caves Resources | -11 -10 -9 -8 -7 -6 -6 ----------- Run | Yrd Mat Mat Mat Fac Fac Low Matter Collected 514 | 194 110 100 73 6 . 31 Remotely . | . . . . . . . Salvage Created 481 | . 175 80 183 43 . . Parts 33 | . 17 4 8 4 . . Haulers Intercepted . | . . . . . . . Recyclers Shooed 1 | . 1 . . . . . Parts Field Recycled . | . . . . . . . Retrieved Matter . | . . . . . . . Parts Self-Destructed . | . . . . . . . Prevented . | . . . . . . . Kills | -11 -10 -9 -8 -7 -6 -6 ------- Run | Yrd Mat Mat Mat Fac Fac Low Combat Hostiles Destroyed 9 | . 5 . 3 1 . . Guns 6 | . 5 . 1 . . . AOE 3 | . . . 2 1 . . Classes Destroyed 6 | . 4 1 . 1 . . Builder 2 | . . . . 2 . . Recycler 2 | . . 1 1 . . . Operator 2 | . 1 1 . . . . Watcher 1 | . 1 . . . . . Swarmer 3 | . 3 . . . . . Grunt 6 | . 2 . 3 1 . . Best Kill Streak 6 | . 6 2 4 3 . . Combat Bots Only 5 | . 5 . 3 1 . . Max Kills in Single Turn 1 | . 1 1 1 1 . . Gunslinging . | . . . . . . . Exploded 1 | . . . 1 1 . . Melee . | . . . . . . . Uniques/NPCs Destroyed . | . . . . . . . Combat | -11 -10 -9 -8 -7 -6 -6 -------- Run | Yrd Mat Mat Mat Fac Fac Low Hostile Shots Fired 189 | . 20 11 32 24 22 80 Missed 63 | . 4 6 12 6 6 29 Damage Taken 2361 | . 163 56 411 642 307 782 Core 1609 | . 69 10 139 535 172 684 Absorbed by Shields . | . . . . . . . Core Remaining (%) 73 | 100 72 97 74 23 . . Volleys Fired 69 | . 21 13 15 13 4 3 Largest 2 | . 2 2 2 2 1 1 Hottest 59 | . 40 40 50 59 23 23 Shots Fired 113 | . 42 26 23 15 4 3 Gun 104 | . 42 26 17 12 4 3 Cannon . | . . . . . . . Launcher 9 | . . . 6 3 . . Special . | . . . . . . . Kinetic 104 | . 42 26 17 12 4 3 Thermal . | . . . . . . . Explosive 9 | . . . 6 3 . . Electromagnetic . | . . . . . . . Robot Hit Streak 9 | . 8 4 9 6 7 3 Robot Miss Streak 5 | . 5 3 4 2 1 2 Penetration Max . | . . . . . . . Secondary Targets 1 | . 1 . . . . . Max Gunslinging Chain 1 | . 1 . . . . . Shots Hit Robots 69 | . 21 17 15 12 3 1 Core Hits 44 | . 15 6 11 9 2 1 Critical Kills . | . . . . . . . Critical Parts Destroyed . | . . . . . . . Critical Strikes . | . . . . . . . Melee Attacks . | . . . . . . . Impact . | . . . . . . . Slashing . | . . . . . . . Piercing . | . . . . . . . Sneak Attacks . | . . . . . . . Combat Hostiles . | . . . . . . . Follow-up Attacks . | . . . . . . . Damage Inflicted 1301 | . 219 173 382 460 52 15 Guns 657 | . 216 173 90 117 46 15 Cannons . | . . . . . . . Explosions 621 | . . . 292 329 . . Melee . | . . . . . . . Ramming 23 | . 3 . . 14 6 . Kinetic 657 | . 216 173 90 117 46 15 Thermal . | . . . . . . . Explosive 621 | . . . 292 329 . . Electromagnetic . | . . . . . . . Impact . | . . . . . . . Slashing . | . . . . . . . Piercing . | . . . . . . . Highest Corruption . | . . . . . . . Average Corruption . | . . . . . . . Corruption Purged . | . . . . . . . Corruption Blocked . | . . . . . . . Overload Shots . | . . . . . . . Overflow Damage 33 | . . . . 33 . . Projectiles . | . . . . . . . Explosions 33 | . . . . 33 . . Melee . | . . . . . . . Knockbacks 1 | . . . . 1 . . Impact 1 | . . . . 1 . . Kinetic . | . . . . . . . Secondary . | . . . . . . . Self-Inflicted Damage 120 | . 1 . . 116 3 . Shots 3 | . . . . 3 . . Rammed 4 | . 1 . . 1 2 . Targets Rammed 4 | . 1 . . 1 2 . Kicked . | . . . . . . . Crushed . | . . . . . . . Highest Temperature 24 | . 4 5 24 12 4 . Average Temperature 6 | . 2 3 13 7 4 . Received Heat Transfer 486 | . 57 24 135 126 144 . Siege Activations . | . . . . . . . Robots Corrupted . | . . . . . . . Combat Hostiles . | . . . . . . . Parts Fried . | . . . . . . . Impact Corruptions . | . . . . . . . Robots Melted . | . . . . . . . Combat Hostiles . | . . . . . . . Parts Melted . | . . . . . . . Heat Transferred . | . . . . . . . Parts Sabotaged . | . . . . . . . Parts Stolen . | . . . . . . . Parts Stripped . | . . . . . . . Power Chain Reactions . | . . . . . . . Alert | -11 -10 -9 -8 -7 -6 -6 ------- Run | Yrd Mat Mat Mat Fac Fac Low Peak Influence 177 | . 162 146 177 116 91 . Initial 77 | . . 68 61 77 56 . Average 69 | . 56 90 110 57 71 . Maximum Alert Level . | . . . . . . . Low Security (%) 100 | 100 100 100 100 100 100 . Level 1 . | . . . . . . . Level 2 . | . . . . . . . Level 3 . | . . . . . . . Level 4 . | . . . . . . . Level 5 . | . . . . . . . High Security . | . . . . . . . Max Security . | . . . . . . . Squads Dispatched 8 | . 1 2 2 1 2 . Investigation 2 | . . 1 1 . . . Extermination . | . . . . . . . Reinforcement 4 | . 1 1 1 1 . . Assault . | . . . . . . . Garrison 2 | . . . . . 2 . Intercept . | . . . . . . . Searches Triggered . | . . . . . . . Construction Impeded . | . . . . . . . Haulers Reinforced . | . . . . . . . Active Scanning Responses . | . . . . . . . Cargo Convoy Interrupts . | . . . . . . . Stealth | -11 -10 -9 -8 -7 -6 -6 --------- Run | Yrd Mat Mat Mat Fac Fac Low Distress Signals 1 | . . . 1 . . . Communications Jammed . | . . . . . . . Distress Signals . | . . . . . . . Times Spotted 46 | . 7 7 8 11 6 7 Peak Tracking Total 8 | . 3 3 8 6 4 8 Tactical Retreats 6 | . . 1 . 2 2 1 Traps | -11 -10 -9 -8 -7 -6 -6 ------- Run | Yrd Mat Mat Mat Fac Fac Low Traps Triggered 1 | . . . . 1 . . Indirectly . | . . . . . . . Trap Hack Attempts . | . . . . . . . Triggered . | . . . . . . . Disarmed . | . . . . . . . Reprogrammed . | . . . . . . . Reused . | . . . . . . . Traps Extracted . | . . . . . . . Installed . | . . . . . . . Triggered . | . . . . . . . Machines | -11 -10 -9 -8 -7 -6 -6 ---------- Run | Yrd Mat Mat Mat Fac Fac Low Machines Disabled 1 | . . . 1 . . . Max in Single Turn 1 | . . . 1 . . . Machines Repaired . | . . . . . . . Machines Dismantled . | . . . . . . . Machines Sabotaged . | . . . . . . . Overloaded Fab Kills . | . . . . . . . Hacking | -11 -10 -9 -8 -7 -6 -6 --------- Run | Yrd Mat Mat Mat Fac Fac Low Machines Accessed 10 | . . 2 2 4 2 . Terminals 7 | . . 1 2 3 1 . Fabricators . | . . . . . . . Repair Stations . | . . . . . . . Recycling Units . | . . . . . . . Scanalyzers 2 | . . 1 . 1 . . Garrison Access 1 | . . . . . 1 . Total Hacks 23 | . . 7 4 8 4 . Successful 12 | . . 6 3 3 . . Failed 11 | . . 1 1 5 4 . Catastrophic 1 | . . . . 1 . . Database Lockouts . | . . . . . . . Manual . | . . . . . . . Terminals 17 | . . 4 4 7 2 . Fabricators . | . . . . . . . Repair Stations . | . . . . . . . Recycling Units . | . . . . . . . Scanalyzers 4 | . . 3 . 1 . . Garrison Access 2 | . . . . . 2 . Terminal Hacks 10 | . . 4 3 3 . . Record 1 | . . . . 1 . . Prototype ID Bank 1 | . . 1 . . . . Emergency Access Points 2 | . . 1 1 . . . Recycling Unit Index 1 | . . . 1 . . . Alert Level 2 | . . 1 . 1 . . Unreport Threat 1 | . . . . 1 . . Registered Prototypes 1 | . . . 1 . . . Zone Layout 1 | . . 1 . . . . Fabricator Hacks . | . . . . . . . Repair Station Hacks . | . . . . . . . Recycling Unit Hacks . | . . . . . . . Scanalyzer 2 | . . 2 . . . . Insert Component 1 | . . 1 . . . . Analyze 1 | . . 1 . . . . Garrison Access Hacks . | . . . . . . . Unauthorized Hacks . | . . . . . . . Terminals . | . . . . . . . Fabricators . | . . . . . . . Repair Stations . | . . . . . . . Recycling Units . | . . . . . . . Scanalyzers . | . . . . . . . Garrison Access . | . . . . . . . Data Cores Recovered . | . . . . . . . Used . | . . . . . . . Hacking Detections 9 | . . 2 1 4 2 . Full Trace Events 2 | . . 1 1 . . . Feedback Events . | . . . . . . . Feedback Blocked . | . . . . . . . Robot Schematics Acquired . | . . . . . . . Robots Built . | . . . . . . . Authchips . | . . . . . . . Time . | . . . . . . . Total Robot Build Rating . | . . . . . . . Part Schematics Acquired 1 | . . 1 . . . . Parts Built . | . . . . . . . Authchips . | . . . . . . . Time . | . . . . . . . Total Part Build Rating . | . . . . . . . Parts Repaired . | . . . . . . . Time . | . . . . . . . Parts Recycled . | . . . . . . . Recycled Matter . | . . . . . . . Retrieved Matter . | . . . . . . . Retrieved Components . | . . . . . . . Parts Scanalyzed 1 | . . 1 . . . . Part Schematics Acquired 1 | . . 1 . . . . Parts Damaged . | . . . . . . . Bothacking | -11 -10 -9 -8 -7 -6 -6 ------------ Run | Yrd Mat Mat Mat Fac Fac Low Used RIF Installer . | . . . . . . . Robots Hacked . | . . . . . . . Non-combat . | . . . . . . . Combat . | . . . . . . . Robot Hacks Applied . | . . . . . . . Relay Couplers Released . | . . . . . . . Fabnet Peak Effective % . | . . . . . . . Robots Rewired . | . . . . . . . Allies Hacked . | . . . . . . . Hacks Repelled . | . . . . . . . Allies | -11 -10 -9 -8 -7 -6 -6 -------- Run | Yrd Mat Mat Mat Fac Fac Low Total Allies . | . . . . . . . Largest Group . | . . . . . . . Highest-Rated Group . | . . . . . . . Highest-Rated Ally . | . . . . . . . Total Orders . | . . . . . . . Ally Attacks . | . . . . . . . Total Damage . | . . . . . . . Kills . | . . . . . . . Allies Corrupted . | . . . . . . . Allies Melted . | . . . . . . . Intel | -11 -10 -9 -8 -7 -6 -6 ------- Run | Yrd Mat Mat Mat Fac Fac Low Robot Analysis Total . | . . . . . . . Derelict Logs Recovered . | . . . . . . . Drone Launches . | . . . . . . . Drone Recoveries . | . . . . . . . Exploration | -11 -10 -9 -8 -7 -6 -6 ------------- Run | Yrd Mat Mat Mat Fac Fac Low Turns Passed 968 | 29 162 125 101 272 200 79 Spaces Moved 1616 | 42 139 235 156 474 419 151 Core 838 | 42 118 . 38 474 55 111 Treads . | . . . . . . . Legs . | . . . . . . . Wheels . | . . . . . . . Hover . | . . . . . . . Flight 778 | . 21 235 118 . 364 40 Fastest Speed 37 | 50 37 37 37 50 40 40 Average Speed 44 | 50 48 37 40 50 41 47 Slowest Speed 120 | 50 120 37 50 50 120 50 Overloaded Moves . | . . . . . . . Propulsion Burnouts . | . . . . . . . Robots Hopped 11 | . . 6 1 . 4 . Cave-ins Triggered . | . . . . . . . Exploration Rate (%) 18 | 3 28 17 26 17 11 26 Regions Visited 6 Branch Regions 1 Pre-discovered Areas . | . . . . . . . Known Exits Taken 2 | . . 1 1 . . . Unknown Exits Taken 4 | 1 1 . . 1 1 . Scrap Searched 1 | . . . . . . 1 Spaces Dug . | . . . . . . . Terrain Destroyed 34 | . . . 23 11 . . Melee . | . . . . . . . Projectile . | . . . . . . . AOE 34 | . . . 23 11 . . Terrain Rammed . | . . . . . . . Walls Destroyed . | . . . . . . . Machines Disabled . | . . . . . . . Actions | -11 -10 -9 -8 -7 -6 -6 --------- Run | Yrd Mat Mat Mat Fac Fac Low Total 1745 | 49 194 243 173 492 438 156 Wait 26 | . 25 . . . 1 . Move 1588 | 41 138 222 153 473 410 151 Hop 11 | . . 6 1 . 4 . Pick Up 20 | 6 5 1 1 3 4 . Fast Attach . | . . . . . . . Attach 18 | 2 4 1 1 2 7 1 Detach 4 | . . . . . 3 1 Swap 1 | . . . 1 . . . Drop 4 | . . . 1 . 3 . Fire 69 | . 21 13 15 13 4 3 Melee . | . . . . . . . Ram 4 | . 1 . . 1 2 . Kick . | . . . . . . . Crush . | . . . . . . . Escape Stasis . | . . . . . . . Rewire . | . . . . . . . Trap . | . . . . . . . Miscellaneous . | . . . . . . . Route ------- -11/Scrapyard -10/Materials -9/Materials -8/Materials -7/Factory -6/Factory -6/Lower Caves History --------- Turn | Location | Event 12 | -11/Scrapyard | Discovered new exit (range 15) 30 | -11/Scrapyard | Entered Materials 63 | -10/Materials | Discovered new exit (range 15) 192 | -10/Materials | Entered another Materials area 192 | -9/Materials | Evolved 2 slots: Utility x2 308 | -9/Materials | Build established: Mutant 312 | -9/Materials | Discovered new exit (range 3) 313 | -9/Materials | Identified exit to Materials 317 | -9/Materials | Entered another Materials area 317 | -8/Materials | Evolved 2 slots: Propulsion x2 413 | -8/Materials | Discovered new exit (range 13) 418 | -8/Materials | Identified exit to Factory 418 | -8/Materials | Entered Factory 418 | -7/Factory | Evolved 2 slots: Propulsion x2 445 | -7/Factory | Lost 6 parts (1p2n3w) 567 | -7/Factory | Core integrity fell below 50% 599 | -7/Factory | Lost 3 parts (1u2w) 628 | -7/Factory | Discovered new exit (range 12) 690 | -7/Factory | Entered another Factory area 690 | -6/Factory | Evolved 2 slots: Power x1, Weapon x1 742 | -6/Factory | Garrison activated, responded to threat 889 | -6/Factory | Discovered new exit (range 4) 890 | -6/Factory | Entered Lower Caves 922 | -6/Lower Caves | Encountered a Warlord checkpoint 939 | -6/Lower Caves | Core integrity fell below 50% 963 | -6/Lower Caves | Lost 3 parts (1n1u1w) 963 | -6/Lower Caves | Core integrity fell below 20% 969 | -6/Lower Caves | Destroyed by S-27 Virus with Autogun Last Messages --------------- 00841_ Nuclear Pulse Thruster destroyed. 00851_ Slammed into K-01 Serf. 00856_ Acquired Nuclear Pulse Thruster. 00860_ Connecting with Terminal... 00889_ EXIT=FOUND LOCATION=UNKNOWN GOAL=ESCAPE 00906_ Searching scrap... 00906_ Found Target Analyzer. 00906_ Found Imp. Actuator Array. 00906_ Found Plasma Rifle. 00906_ Found 31 Matter. 00907_ Acquired 31 matter. 00907_ Nuclear Pulse Thruster destroyed. 00917_ Hacking Suite destroyed. 00922_ GR-515(M): "You haven't seen any Assembled, have you?" 00928_ S-27 Virus knocked back. 00929_ GR-515(M) destroyed. 00932_ Autogun destroyed. Map ----- +----------------------------------------------------+ | ?????????????????# #??##?????? #??? | | ?????????????????# #???????????????? | | ?????????????????## ## #??????????????? | | ??????????????????# ] ### #??????????????? | | ??????????????????# =%! ########??????????????? | | ??????????????????# * ##???????????????????? | | ??????????????????# #???????????????????? | | ??????????????????# #???????????????????? | | ??????????????????## #???????????????????? | | ???????????????????# #???????????????????? | | ???????????????????## #???????????????????? | | ????????????????????# #???????????????????? | | ???????????????????## #???????????????????? | | ???????????????????# ##???????????????????? | | ???????????????????# ##????????????????????? | | ???????????????????# ###???????????????????? | | ??????????? #?????## ##??????????????????? | | ???????????? ????# ##?????????????????? | | ?????????????# #### #?????????????????? | | ?????????????# #?????????????????? | | ?????????????# ##?????????????????? | | ????????###??##### ##?????????????????? | | ???????## ####???# ##????????????????? | | ?????### ##??## ##???????????????? | | ?????# #???# #???????????????? | | ?????# ##?## @ #???????????????? | | ?????# ### #???????????????? | | ?????# s #???????????????? | | ?????## ss s ### #????????????? | | ??????# # #??## #????????????? | | ??????# ## #?????###????????????? | | ??????# ### ## ## ##???????????????????? | | ??????# #?## ## #???????????????????? | | ?????# #??# ## "" ##?????????????????? | | ?????# #??## # """" #?????????????????? | | ?????# #???# "" #?????????????????? | | ?????# ## ##???# "" ##?????????????????? | | ?????###?###????## # """" ##??????????????????? | | ?????????????????#### """" #???????????????????? | | ????????????????????# """" #???????????????????? | | ????????????????????# #???????????????????? | | ????????????????????# #???????????????????? | | ????????????????????##########???????????????????? | | ?????????????????????????????????????????????????? | | ?????????????????????????????????????????????????? | | ?????????????????????????????????????????????????? | | ?????????????????????????????????????????????????? | | ?????????????????????????????????????????????????? | | ?????????????????????????????????????????????????? | | ?????????????????????????????????????????????????? | +----------------------------------------------------+ Best States ------------- Heat Dissipation 37 Energy Generation 15 Energy Capacity 150 Matter Stores 300 Matter Capacity 300 Sight Range 16 Terrain Scan Density 10 Evasion (%) 62 Offensive Hacking 10 Item Schematics ----------------- Sml. Storage Unit | -9/Materials | Scanalyzed Robot Schematics ------------------ None Fabricated ------------ Nothing Alien Tech Used ----------------- None Achievements -------------- None Challenges ------------ None Game ------ Seed SwarmMyomerCalibrator Manual? 0 Play Time 00:25:51 Cumulative 23.6 hours Start 2024.04.13 @ 21:24:23 End 2024.04.13 @ 21:49:49 Sessions 1 Manual Loads 0 Difficulty Rogue Special Mode None Game No. 37 Rogue 37 Adventurer 0 Explorer 0 Win Type - Total 0 Types 0/0/0/0/0/0/0/0/0 Lore% 22 Gallery% 21 Achievement% 18 Wizard Run 0 Options --------- Layout 1 ASCII 1 Keyboard 0 Movement Vi Keybinds 0 Fullscreen 1 Font 16/SmallcapsGlow Map View 50x35 Zoom Use 0% Tactical HUD 1 Map Filters NONE Filters NONE Steam SD RUN: 9eff4f12-f7f9-4b5f-b7ee-86736d97fb50